[Event "NJSK 2022 Jeugd A"]
[Site "Almelo, Netherlands"]
[Date "2022.05.03"]
[Round "3.6"]
[White "Hooijmans, Max"]
[Black "Van Kuijk, Vadim"]
[Result "0-1"]
[TimeControl "90min/40moves + 30min + 30sec/move"]
[WhiteElo "1420"]
[BlackElo "1898"]

1. e4 {[%clk 01:30:58]} {[%emt 00:00:01]} c6 {[%clk 01:26:07]} {[%emt
00:04:53]} 2. d4 {[%clk 01:31:20]} {[%emt 00:00:07]} d5 {[%clk 01:26:31]}
{[%emt 00:00:06]} 3. e5 {[%clk 01:31:41]} {[%emt 00:00:10]} Bf5 {[%clk
01:26:53]} {[%emt 00:00:07]} 4. Bd3 {[%clk 01:31:32]} {[%emt 00:00:39]} Bxd3
{[%clk 01:27:05]} {[%emt 00:00:19]} 5. Qxd3 {[%clk 01:31:59]} {[%emt 00:00:04]}
e6 {[%clk 01:26:58]} {[%emt 00:00:36]} 6. Ne2 {[%clk 01:31:43]} {[%emt
00:00:46]} Nd7 {[%clk 01:18:24]} {[%emt 00:09:03]} 7. Nd2 {[%clk 01:27:02]}
{[%emt 00:05:12]} Qb6 {[%clk 01:14:00]} {[%emt 00:04:54]} 8. O-O {[%clk
01:23:07]} {[%emt 00:04:25]} c5 {[%clk 01:11:25]} {[%emt 00:03:05]} 9. c3
{[%clk 01:23:15]} {[%emt 00:00:23]} Ne7 {[%clk 01:10:21]} {[%emt 00:01:33]} 10.
f4 {[%clk 01:20:42]} {[%emt 00:03:02]} h5 {[%clk 01:08:24]} {[%emt 00:02:27]}
11. Nf3 {[%clk 01:14:28]} {[%emt 00:06:45]} Nf5 {[%clk 01:06:16]} {[%emt
00:02:38]} 12. Ng3 {[%clk 01:11:24]} {[%emt 00:03:34]} g6 {[%clk 01:01:14]}
{[%emt 00:05:31]} 13. Nxf5 {[%clk 01:11:12]} {[%emt 00:00:42]} gxf5 {[%clk
01:01:33]} {[%emt 00:00:11]} 14. Rb1 {[%clk 01:06:34]} {[%emt 00:05:09]} cxd4
{[%clk 00:58:43]} {[%emt 00:03:20]} 15. cxd4 {[%clk 01:06:07]} {[%emt
00:00:57]} Nb8 {[%clk 00:53:02]} {[%emt 00:06:11]} 16. b4 {[%clk 01:01:51]}
{[%emt 00:04:46]} Nc6 {[%clk 00:51:54]} {[%emt 00:01:38]} 17. a3 {[%clk
01:02:01]} {[%emt 00:00:21]} Rc8 {[%clk 00:51:31]} {[%emt 00:00:52]} 18. Bd2
{[%clk 01:00:36]} {[%emt 00:01:55]} Bh6 {[%clk 00:46:37]} {[%emt 00:05:24]} 19.
a4 {[%clk 00:54:06]} {[%emt 00:06:59]} O-O {[%clk 00:39:21]} {[%emt 00:07:46]}
20. a5 {[%clk 00:52:40]} {[%emt 00:01:57]} Qd8 {[%clk 00:39:31]} {[%emt
00:00:20]} 21. Be3 {[%clk 00:42:47]} {[%emt 00:10:23]} a6 {[%clk 00:34:01]}
{[%emt 00:06:00]} 22. Rb3 {[%clk 00:39:20]} {[%emt 00:03:56]} Na7 {[%clk
00:30:57]} {[%emt 00:03:35]} 23. Qe2 {[%clk 00:37:12]} {[%emt 00:02:38]} Qe8
{[%clk 00:28:53]} {[%emt 00:02:34]} 24. Nh4 {[%clk 00:31:39]} {[%emt 00:06:03]}
f6 {[%clk 00:29:05]} {[%emt 00:00:18]} 25. Rf3 {[%clk 00:30:27]} {[%emt
00:01:41]} Kh7 {[%clk 00:27:39]} {[%emt 00:01:55]} 26. Rg3 {[%clk 00:28:17]}
{[%emt 00:02:41]} Nb5 {[%clk 00:21:26]} {[%emt 00:06:43]} 27. Rg6 {[%clk
00:24:14]} {[%emt 00:04:33]} Rg8 {[%clk 00:21:49]} {[%emt 00:00:08]} 28. Rxf6
{[%clk 00:21:02]} {[%emt 00:03:42]} Rg4 {[%clk 00:20:05]} {[%emt 00:02:14]} 29.
h3 {[%clk 00:19:56]} {[%emt 00:01:37]} Rxh4 {[%clk 00:13:10]} {[%emt 00:07:24]}
30. Qf2 {[%clk 00:20:01]} {[%emt 00:00:25]} Nxd4 {[%clk 00:12:55]} {[%emt
00:00:45]} 31. Qxh4 {[%clk 00:18:45]} {[%emt 00:01:46]} Nxb3 {[%clk 00:12:50]}
{[%emt 00:00:35]} 32. g4 {[%clk 00:16:56]} {[%emt 00:02:19]} Bg7 {[%clk
00:07:54]} {[%emt 00:05:25]} 33. gxf5 {[%clk 00:15:51]} {[%emt 00:01:35]} Bxf6
{[%clk 00:08:05]} {[%emt 00:00:20]} 34. Qxf6 {[%clk 00:15:23]} {[%emt
00:00:57]} exf5 {[%clk 00:08:10]} {[%emt 00:00:26]} 35. Kh1 {[%clk 00:15:24]}
{[%emt 00:00:28]} Qg6 {[%clk 00:08:05]} {[%emt 00:00:35]} 36. Qe7+ {[%clk
00:15:16]} {[%emt 00:00:39]} Kh6 {[%clk 00:07:47]} {[%emt 00:00:47]} 37. Bf2
{[%clk 00:13:45]} {[%emt 00:02:01]} Rg8 {[%clk 00:08:03]} {[%emt 00:00:13]} 0-1

[Event "NJSK 2022 Jeugd A"]
[Site "Almelo, Netherlands"]
[Date "2022.05.03"]
[Round "3.7"]
[White "Boeren, Jurriaan"]
[Black "Hubers, Daan"]
[Result "1-0"]
[TimeControl "90min/40moves + 30min + 30sec/move"]
[WhiteElo "1778"]
[BlackElo "1818"]

1. e4 {[%clk 01:30:57]} {[%emt 00:00:03]} Nf6 {[%clk 01:30:54]} {[%emt
00:00:06]} 2. Nc3 {[%clk 01:30:54]} {[%emt 00:00:34]} e5 {[%clk 01:29:25]}
{[%emt 00:01:59]} 3. f4 {[%clk 01:26:50]} {[%emt 00:04:34]} d6 {[%clk
01:24:12]} {[%emt 00:05:43]} 4. Nf3 {[%clk 01:23:48]} {[%emt 00:03:32]} Bg4
{[%clk 01:20:49]} {[%emt 00:03:53]} 5. h3 {[%clk 01:19:52]} {[%emt 00:04:26]}
Bxf3 {[%clk 01:21:00]} {[%emt 00:00:19]} 6. Qxf3 {[%clk 01:20:17]} {[%emt
00:00:05]} a6 {[%clk 01:19:11]} {[%emt 00:02:20]} 7. Bc4 {[%clk 01:12:51]}
{[%emt 00:07:55]} Nc6 {[%clk 01:18:20]} {[%emt 00:01:21]} 8. d3 {[%clk
01:12:15]} {[%emt 00:01:06]} Nd4 {[%clk 00:59:16]} {[%emt 00:19:34]} 9. Qf2
{[%clk 01:12:09]} {[%emt 00:00:36]} h6 {[%clk 00:51:30]} {[%emt 00:08:17]} 10.
Be3 {[%clk 01:09:09]} {[%emt 00:03:30]} c5 {[%clk 00:48:05]} {[%emt 00:03:54]}
11. a4 {[%clk 00:59:42]} {[%emt 00:09:57]} b5 {[%clk 00:45:08]} {[%emt
00:03:28]} 12. Ba2 {[%clk 00:48:27]} {[%emt 00:11:45]} Be7 {[%clk 00:33:09]}
{[%emt 00:12:27]} 13. O-O {[%clk 00:44:33]} {[%emt 00:04:24]} b4 {[%clk
00:22:38]} {[%emt 00:11:03]} 14. Nd5 {[%clk 00:44:02]} {[%emt 00:01:00]} Nxd5
{[%clk 00:20:25]} {[%emt 00:02:44]} 15. Bxd5 {[%clk 00:44:09]} {[%emt
00:00:23]} Bh4 {[%clk 00:20:30]} {[%emt 00:00:24]} 16. g3 {[%clk 00:23:02]}
{[%emt 00:21:38]} Bxg3 {[%clk 00:20:40]} {[%emt 00:00:19]} 17. Qg2 {[%clk
00:23:26]} {[%emt 00:00:05]} exf4 {[%clk 00:17:38]} {[%emt 00:03:32]} 18. Bxf4
{[%clk 00:21:53]} {[%emt 00:02:04]} Bxf4 {[%clk 00:17:47]} {[%emt 00:00:21]} 19.
Rxf4 {[%clk 00:21:40]} {[%emt 00:00:42]} Ra7 {[%clk 00:17:49]} {[%emt
00:00:29]} 20. c3 {[%clk 00:20:03]} {[%emt 00:02:08]} Qg5 {[%clk 00:16:37]}
{[%emt 00:01:41]} 21. Rg4 {[%clk 00:18:44]} {[%emt 00:01:48]} Qe3+ {[%clk
00:15:38]} {[%emt 00:01:30]} 22. Kh1 {[%clk 00:19:02]} {[%emt 00:00:12]} Ne6
{[%clk 00:13:06]} {[%emt 00:03:02]} 23. Rg3 {[%clk 00:18:43]} {[%emt 00:00:49]}
Qf4 {[%clk 00:12:52]} {[%emt 00:00:44]} 24. Rf1 {[%clk 00:18:05]} {[%emt
00:01:08]} Qe5 {[%clk 00:12:16]} {[%emt 00:01:06]} 25. Rf5 {[%clk 00:17:18]}
{[%emt 00:01:17]} 1-0

[Event "NJSK 2022 Jeugd A"]
[Site "Almelo, Netherlands"]
[Date "2022.05.04"]
[Round "4.1"]
[White "Roebers, Eline"]
[Black "Van Foreest, Machteld"]
[Result "1-0"]
[TimeControl "90min/40moves + 30min + 30sec/move"]
[WhiteElo "2369"]
[BlackElo "2287"]

1. e4 {[%clk 01:30:59]} c5 {[%clk 01:30:57]} {[%emt 00:00:04]} 2. Nf3 {[%clk
01:31:26]} {[%emt 00:00:03]} e6 {[%clk 01:31:24]} {[%emt 00:00:03]} 3. d4
{[%clk 01:31:52]} {[%emt 00:00:03]} cxd4 {[%clk 01:31:53]} {[%emt 00:00:03]} 4.
Nxd4 {[%clk 01:32:17]} {[%emt 00:00:04]} Nc6 {[%clk 01:32:17]} {[%emt
00:00:06]} 5. Nc3 {[%clk 01:32:43]} {[%emt 00:00:05]} Nf6 {[%clk 01:32:45]}
{[%emt 00:00:02]} 6. Nxc6 {[%clk 01:33:03]} {[%emt 00:00:10]} bxc6 {[%clk
01:33:13]} {[%emt 00:00:02]} 7. e5 {[%clk 01:33:28]} {[%emt 00:00:05]} Nd5
{[%clk 01:33:41]} {[%emt 00:00:02]} 8. Ne4 {[%clk 01:33:54]} {[%emt 00:00:04]}
Qc7 {[%clk 01:34:09]} {[%emt 00:00:02]} 9. f4 {[%clk 01:34:21]} {[%emt
00:00:04]} Qb6 {[%clk 01:34:37]} 10. c4 {[%clk 01:34:44]} {[%emt 00:00:06]}
Bb4+ {[%clk 01:34:59]} {[%emt 00:00:08]} 11. Ke2 {[%clk 01:35:04]} {[%emt
00:00:09]} f5 {[%clk 01:35:22]} {[%emt 00:00:08]} 12. Nf2 {[%clk 01:35:30]}
{[%emt 00:00:03]} Ne7 {[%clk 01:34:25]} {[%emt 00:01:27]} 13. Nd3 {[%clk
01:25:07]} {[%emt 00:10:53]} d5 {[%clk 01:21:16]} {[%emt 00:13:40]} 14. Be3
{[%clk 01:13:07]} {[%emt 00:12:29]} d4 {[%clk 01:14:05]} {[%emt 00:07:41]} 15.
Bf2 {[%clk 00:58:07]} {[%emt 00:15:30]} Ng6 {[%clk 01:07:20]} {[%emt 00:07:15]}
16. h4 {[%clk 00:47:46]} {[%emt 00:10:51]} h5 {[%clk 00:49:38]} {[%emt
00:18:12]} 17. Qa4 {[%clk 00:42:56]} {[%emt 00:05:21]} Be7 {[%clk 00:43:36]}
{[%emt 00:06:31]} 18. Rc1 {[%clk 00:41:19]} {[%emt 00:02:07]} O-O {[%clk
00:40:21]} {[%emt 00:03:46]} 19. c5 {[%clk 00:39:21]} {[%emt 00:02:29]} Qc7
{[%clk 00:31:59]} {[%emt 00:08:52]} 20. g3 {[%clk 00:39:30]} {[%emt 00:00:20]}
Rb8 {[%clk 00:27:18]} {[%emt 00:05:11]} 21. Bg2 {[%clk 00:30:40]} {[%emt
00:09:20]} Rb5 {[%clk 00:25:44]} {[%emt 00:02:04]} 22. Rhd1 {[%clk 00:28:17]}
{[%emt 00:02:53]} a5 {[%clk 00:19:47]} {[%emt 00:06:28]} 23. Kf1 {[%clk
00:24:17]} {[%emt 00:04:28]} Rd8 {[%clk 00:19:32]} {[%emt 00:00:45]} 24. Kg1
{[%clk 00:21:57]} {[%emt 00:02:50]} Ba6 {[%clk 00:16:35]} {[%emt 00:03:28]} 25.
Bf3 {[%clk 00:19:23]} {[%emt 00:03:04]} Rbb8 {[%clk 00:14:24]} {[%emt
00:02:41]} 26. Qxc6 {[%clk 00:16:22]} {[%emt 00:03:32]} Qxc6 {[%clk 00:14:38]}
{[%emt 00:00:15]} 27. Bxc6 {[%clk 00:16:48]} {[%emt 00:00:04]} Rbc8 {[%clk
00:13:45]} {[%emt 00:01:24]} 28. Ba4 {[%clk 00:12:51]} {[%emt 00:04:26]} Bxd3
{[%clk 00:13:19]} {[%emt 00:00:56]} 29. Rxd3 {[%clk 00:13:19]} {[%emt
00:00:03]} Bxc5 {[%clk 00:12:59]} {[%emt 00:00:49]} 30. Kf1 {[%clk 00:11:04]}
{[%emt 00:02:44]} Ne7 {[%clk 00:12:54]} {[%emt 00:00:35]} 31. Ke2 {[%clk
00:08:50]} {[%emt 00:02:45]} Kf7 {[%clk 00:10:48]} {[%emt 00:02:36]} 32. Bb3
{[%clk 00:07:55]} {[%emt 00:01:25]} Ba7 {[%clk 00:10:31]} {[%emt 00:00:48]} 33.
Rcd1 {[%clk 00:06:21]} {[%emt 00:02:03]} Nc6 {[%clk 00:09:48]} {[%emt
00:01:13]} 34. a3 {[%clk 00:06:47]} {[%emt 00:00:04]} Rb8 {[%clk 00:08:57]}
{[%emt 00:01:21]} 35. R1d2 {[%clk 00:06:10]} {[%emt 00:01:07]} Ne7 {[%clk
00:08:11]} {[%emt 00:01:16]} 36. Ba4 {[%clk 00:05:04]} {[%emt 00:01:36]} Rb7
{[%clk 00:07:09]} {[%emt 00:01:33]} 37. Rb3 {[%clk 00:02:39]} {[%emt 00:02:55]}
Rxb3 {[%clk 00:04:39]} {[%emt 00:03:00]} 38. Bxb3 {[%clk 00:03:04]} {[%emt
00:00:04]} Nc8 {[%clk 00:02:45]} {[%emt 00:02:24]} 39. Kd3 {[%clk 00:01:26]}
{[%emt 00:02:08]} Ke7 {[%clk 00:01:18]} {[%emt 00:01:57]} 40. Rc2 {[%clk
00:01:31]} {[%emt 00:00:25]} Bb6 {[%emt 00:01:39]} 41. Rc6 {[%clk 00:01:30]}
Kd7 {[%clk 00:27:00]} {[%emt 00:04:11]} 42. Rxe6 {[%clk 00:30:19]} {[%emt
00:01:41]} Kc7 {[%clk 00:18:50]} {[%emt 00:08:39]} 43. Ba4 {[%clk 00:28:04]}
{[%emt 00:02:45]} Ba7 {[%clk 00:18:17]} {[%emt 00:01:04]} 44. Be1 {[%clk
00:27:37]} {[%emt 00:00:56]} Bb6 {[%clk 00:18:38]} {[%emt 00:00:10]} 45. Rg6
{[%clk 00:27:52]} {[%emt 00:00:14]} 1-0

[Event "NJSK 2022 Jeugd A"]
[Site "Almelo, Netherlands"]
[Date "2022.05.04"]
[Round "4.2"]
[White "Albers, Sasa"]
[Black "Pham, Khoi"]
[Result "1-0"]
[TimeControl "90min/40moves + 30min + 30sec/move"]
[WhiteElo "2117"]
[BlackElo "2291"]

1. e4 {[%clk 01:30:58]} c5 {[%clk 01:30:57]} {[%emt 00:00:04]} 2. Nf3 {[%clk
01:31:24]} {[%emt 00:00:05]} Nc6 {[%clk 01:31:24]} {[%emt 00:00:03]} 3. Bb5
{[%clk 01:31:36]} {[%emt 00:00:17]} g6 {[%clk 01:31:44]} {[%emt 00:00:10]} 4.
O-O {[%clk 01:32:00]} {[%emt 00:00:05]} Bg7 {[%clk 01:32:09]} {[%emt 00:00:05]}
5. c3 {[%clk 01:32:15]} {[%emt 00:00:15]} e5 {[%clk 01:32:32]} {[%emt
00:00:07]} 6. Bxc6 {[%clk 01:32:29]} {[%emt 00:00:16]} dxc6 {[%clk 01:32:56]}
{[%emt 00:00:07]} 7. d3 {[%clk 01:32:46]} {[%emt 00:00:12]} Qe7 {[%clk
01:29:23]} {[%emt 00:04:03]} 8. a4 {[%clk 01:26:06]} {[%emt 00:07:10]} a5
{[%clk 01:22:12]} {[%emt 00:07:42]} 9. Na3 {[%clk 01:26:09]} {[%emt 00:00:26]}
Nf6 {[%clk 01:02:43]} {[%emt 00:19:59]} 10. Nc4 {[%clk 01:25:20]} {[%emt
00:01:19]} Nd7 {[%clk 01:02:57]} {[%emt 00:00:16]} 11. Bg5 {[%clk 01:18:44]}
{[%emt 00:07:06]} f6 {[%clk 01:02:00]} {[%emt 00:01:28]} 12. Be3 {[%clk
01:17:09]} {[%emt 00:02:05]} O-O {[%clk 00:50:02]} {[%emt 00:12:28]} 13. Qb3
{[%clk 00:57:35]} {[%emt 00:20:03]} Rf7 {[%clk 00:47:30]} {[%emt 00:03:02]} 14.
Nfd2 {[%clk 00:52:58]} {[%emt 00:05:06]} Ra6 {[%clk 00:30:49]} {[%emt
00:17:12]} 15. f4 {[%clk 00:43:22]} {[%emt 00:10:06]} Bh6 {[%clk 00:24:57]}
{[%emt 00:06:22]} 16. Rae1 {[%clk 00:39:40]} {[%emt 00:04:11]} b5 {[%clk
00:24:16]} {[%emt 00:01:12]} 17. Na3 {[%clk 00:38:59]} {[%emt 00:01:10]} exf4
{[%clk 00:22:40]} {[%emt 00:02:07]} 18. Bxf4 {[%clk 00:38:57]} {[%emt
00:00:31]} Bxf4 {[%clk 00:23:05]} {[%emt 00:00:05]} 19. Rxf4 {[%clk 00:39:20]}
{[%emt 00:00:07]} c4 {[%clk 00:22:03]} {[%emt 00:01:33]} 20. dxc4 {[%clk
00:36:11]} {[%emt 00:03:39]} Nc5 {[%clk 00:22:25]} {[%emt 00:00:08]} 21. Qc2
{[%clk 00:36:03]} {[%emt 00:00:38]} bxa4 {[%clk 00:22:00]} {[%emt 00:00:56]} 22.
Rff1 {[%clk 00:32:24]} {[%emt 00:04:07]} Rb6 {[%clk 00:21:26]} {[%emt
00:01:05]} 23. Nf3 {[%clk 00:31:46]} {[%emt 00:01:07]} Qb7 {[%clk 00:20:14]}
{[%emt 00:01:42]} 24. Rf2 {[%clk 00:31:44]} {[%emt 00:00:33]} Re7 {[%clk
00:19:17]} {[%emt 00:01:27]} 25. Nd4 {[%clk 00:31:07]} {[%emt 00:01:07]} f5
{[%clk 00:18:20]} {[%emt 00:01:27]} 26. e5 {[%clk 00:30:58]} {[%emt 00:00:39]}
Ne4 {[%clk 00:18:27]} {[%emt 00:00:22]} 27. c5 {[%clk 00:30:18]} {[%emt
00:01:10]} Ra6 {[%clk 00:15:43]} {[%emt 00:03:15]} 28. Rfe2 {[%clk 00:23:28]}
{[%emt 00:07:19]} Rxe5 {[%clk 00:15:48]} {[%emt 00:00:25]} 29. Qxa4 {[%clk
00:23:02]} {[%emt 00:00:57]} Rxc5 {[%clk 00:13:25]} {[%emt 00:02:53]} 30. Nc4
{[%clk 00:23:20]} {[%emt 00:00:12]} Bd7 {[%clk 00:06:10]} {[%emt 00:07:45]} 31.
Qa2 {[%clk 00:21:05]} {[%emt 00:02:45]} Kh8 {[%clk 00:04:16]} {[%emt 00:02:24]}
32. Nd2 {[%clk 00:20:11]} {[%emt 00:01:23]} Rd5 {[%clk 00:04:38]} {[%emt
00:00:09]} 33. Nxe4 {[%clk 00:19:59]} {[%emt 00:00:41]} fxe4 {[%clk 00:05:03]}
{[%emt 00:00:06]} 34. Rxe4 {[%clk 00:19:50]} {[%emt 00:00:38]} c5 {[%clk
00:05:26]} {[%emt 00:00:08]} 35. Nf3 {[%clk 00:19:13]} {[%emt 00:01:06]} Rf6
{[%clk 00:03:20]} {[%emt 00:02:36]} 36. Qxa5 {[%clk 00:09:14]} {[%emt
00:10:29]} Rf8 {[%clk 00:01:44]} {[%emt 00:02:07]} 37. c4 {[%clk 00:08:51]}
{[%emt 00:00:52]} Rdf5 {[%clk 00:01:43]} {[%emt 00:00:32]} 38. Qc3+ {[%clk
00:08:56]} {[%emt 00:00:25]} R8f6 {[%clk 00:02:10]} {[%emt 00:00:04]} 39. Re7
{[%clk 00:03:53]} {[%emt 00:05:32]} Qc6 {[%clk 00:02:17]} {[%emt 00:00:23]} 40.
Qd2 {[%clk 00:02:51]} {[%emt 00:01:32]} Rxf3 {[%clk 00:00:36]} {[%emt
00:02:11]} 41. gxf3 {[%clk 00:29:46]} {[%emt 00:03:35]} Qxf3 {[%clk 00:31:01]}
{[%emt 00:00:05]} 42. Rxd7 {[%clk 00:28:57]} {[%emt 00:01:17]} Qg4+ {[%clk
00:31:26]} {[%emt 00:00:06]} 43. Kh1 {[%clk 00:29:20]} {[%emt 00:00:06]} 1-0

[Event "NJSK 2022 Jeugd A"]
[Site "Almelo, Netherlands"]
[Date "2022.05.04"]
[Round "4.3"]
[White "Van Kuijk, Vadim"]
[Black "Verheul, Job"]
[Result "1-0"]
[TimeControl "90min/40moves + 30min + 30sec/move"]
[WhiteElo "1898"]
[BlackElo "1707"]

1. e4 {[%clk 01:30:38]} {[%emt 00:00:22]} c6 {[%clk 01:30:55]} {[%emt
00:00:05]} 2. d4 {[%clk 01:31:01]} {[%emt 00:00:06]} d5 {[%clk 01:31:19]}
{[%emt 00:00:07]} 3. exd5 {[%clk 01:30:46]} {[%emt 00:00:46]} cxd5 {[%clk
01:31:42]} {[%emt 00:00:08]} 4. Bd3 {[%clk 01:31:07]} {[%emt 00:00:07]} Nc6
{[%clk 01:32:05]} {[%emt 00:00:07]} 5. c3 {[%clk 01:31:32]} {[%emt 00:00:05]}
Nf6 {[%clk 01:32:26]} {[%emt 00:00:08]} 6. Bf4 {[%clk 01:31:57]} {[%emt
00:00:06]} Bg4 {[%clk 01:32:47]} {[%emt 00:00:09]} 7. Qb3 {[%clk 01:32:22]}
{[%emt 00:00:05]} Qd7 {[%clk 01:33:07]} {[%emt 00:00:10]} 8. Nd2 {[%clk
01:32:32]} {[%emt 00:00:20]} e6 {[%clk 01:33:28]} {[%emt 00:00:09]} 9. Ngf3
{[%clk 01:32:55]} {[%emt 00:00:07]} Bd6 {[%clk 01:33:45]} {[%emt 00:00:13]} 10.
Bxd6 {[%clk 01:33:19]} {[%emt 00:00:06]} Qxd6 {[%clk 01:34:10]} {[%emt
00:00:05]} 11. O-O {[%clk 01:33:40]} {[%emt 00:00:09]} O-O {[%clk 01:34:33]}
{[%emt 00:00:07]} 12. Rfe1 {[%clk 01:34:04]} {[%emt 00:00:06]} Ne7 {[%clk
01:34:46]} {[%emt 00:00:17]} 13. Ne5 {[%clk 01:32:23]} {[%emt 00:02:11]} Bf5
{[%clk 01:34:37]} {[%emt 00:00:39]} 14. Bxf5 {[%clk 01:32:22]} {[%emt
00:00:31]} Nxf5 {[%clk 01:34:54]} {[%emt 00:00:13]} 15. Qxb7 {[%clk 01:32:23]}
{[%emt 00:00:28]} Rab8 {[%clk 01:35:02]} {[%emt 00:00:23]} 16. Qxa7 {[%clk
01:32:46]} {[%emt 00:00:06]} Rxb2 {[%clk 01:35:23]} 17. Nb3 {[%clk 01:32:59]}
{[%emt 00:00:26]} h5 {[%clk 01:35:02]} {[%emt 00:00:51]} 18. h3 {[%clk
01:32:58]} {[%emt 00:00:31]} Ne4 {[%clk 01:25:59]} {[%emt 00:09:33]} 19. Rxe4
{[%clk 01:26:43]} {[%emt 00:06:45]} dxe4 {[%clk 01:23:43]} {[%emt 00:02:47]} 20.
Nc4 {[%clk 01:26:48]} {[%emt 00:00:25]} Qf4 {[%clk 01:17:06]} {[%emt 00:07:06]}
21. Nxb2 {[%clk 01:27:02]} {[%emt 00:00:17]} e3 {[%clk 01:17:31]} {[%emt
00:00:06]} 22. Nd3 {[%clk 01:02:36]} {[%emt 00:24:55]} exf2+ {[%clk 01:10:37]}
{[%emt 00:07:24]} 23. Nxf2 {[%clk 01:02:13]} {[%emt 00:00:53]} Qg3 {[%clk
01:08:49]} {[%emt 00:02:18]} 24. Rc1 {[%clk 00:55:46]} {[%emt 00:06:56]} Nh4
{[%clk 01:08:06]} {[%emt 00:01:14]} 25. Qb7 {[%clk 00:56:03]} {[%emt 00:00:13]}
Rb8 {[%clk 01:07:13]} {[%emt 00:01:22]} 26. Qe4 {[%clk 00:53:26]} {[%emt
00:03:07]} f5 {[%clk 01:06:52]} {[%emt 00:00:51]} 27. Nh1 {[%clk 00:50:30]}
{[%emt 00:03:27]} Qg5 {[%clk 01:06:13]} {[%emt 00:01:09]} 28. Qxe6+ {[%clk
00:50:16]} {[%emt 00:00:44]} Kh7 {[%clk 01:06:16]} {[%emt 00:00:27]} 29. Rc2
{[%clk 00:49:55]} {[%emt 00:00:52]} Rb7 {[%clk 01:04:04]} {[%emt 00:02:41]} 30.
Re2 {[%clk 00:45:04]} {[%emt 00:05:21]} Ng6 {[%clk 01:04:00]} {[%emt 00:00:34]}
31. Qe3 {[%clk 00:38:00]} {[%emt 00:07:34]} f4 {[%clk 01:01:08]} {[%emt
00:03:22]} 32. Qd3 {[%clk 00:37:08]} {[%emt 00:01:21]} Rf7 {[%clk 00:53:52]}
{[%emt 00:07:46]} 33. Re5 {[%clk 00:27:40]} {[%emt 00:09:58]} Qh4 {[%clk
00:53:24]} {[%emt 00:00:58]} 34. Nd2 {[%clk 00:27:12]} {[%emt 00:00:59]} 1-0

[Event "NJSK 2022 Jeugd A"]
[Site "Almelo, Netherlands"]
[Date "2022.05.04"]
[Round "4.4"]
[White "Klaren, Duncan"]
[Black "Elgersma, Onno"]
[Result "0-1"]
[TimeControl "90min/40moves + 30min + 30sec/move"]
[WhiteElo "1916"]
[BlackElo "2303"]

1. d4 {[%clk 01:30:55]} {[%emt 00:00:04]} Nf6 {[%clk 01:30:46]} {[%emt
00:00:14]} 2. Nf3 {[%clk 01:31:16]} {[%emt 00:00:09]} d5 {[%clk 01:31:10]}
{[%emt 00:00:06]} 3. g3 {[%clk 01:31:39]} {[%emt 00:00:06]} c5 {[%clk
01:26:00]} {[%emt 00:05:41]} 4. Bg2 {[%clk 01:31:37]} {[%emt 00:00:32]} cxd4
{[%clk 01:26:26]} {[%emt 00:00:05]} 5. O-O {[%clk 01:31:24]} {[%emt 00:00:42]}
h6 {[%clk 01:26:53]} {[%emt 00:00:04]} 6. b3 {[%clk 01:31:09]} {[%emt
00:00:45]} h5 {[%clk 01:26:21]} {[%emt 00:01:01]} 7. h4 {[%clk 01:25:18]}
{[%emt 00:06:22]} Bg4 {[%clk 01:26:01]} {[%emt 00:00:50]} 8. Bb2 {[%clk
01:23:52]} {[%emt 00:01:55]} Nc6 {[%clk 00:58:05]} {[%emt 00:28:27]} 9. Nxd4
{[%clk 01:14:19]} {[%emt 00:10:02]} Qd7 {[%clk 00:58:23]} {[%emt 00:00:12]} 10.
Nxc6 {[%clk 01:07:55]} {[%emt 00:06:54]} bxc6 {[%clk 00:58:18]} {[%emt
00:00:36]} 11. Nd2 {[%clk 01:03:44]} {[%emt 00:04:40]} Rd8 {[%clk 00:56:36]}
{[%emt 00:02:12]} 12. Nf3 {[%clk 01:02:46]} {[%emt 00:01:29]} Bh3 {[%clk
00:30:05]} {[%emt 00:27:01]} 13. Qd3 {[%clk 00:51:59]} {[%emt 00:11:16]} Bxg2
{[%clk 00:21:23]} {[%emt 00:09:12]} 14. Kxg2 {[%clk 00:52:22]} {[%emt
00:00:07]} g6 {[%clk 00:20:32]} {[%emt 00:01:22]} 15. Qa6 {[%clk 00:49:18]}
{[%emt 00:03:34]} Bg7 {[%clk 00:15:28]} {[%emt 00:05:34]} 16. Ne5 {[%clk
00:44:50]} {[%emt 00:04:57]} Qe6 {[%clk 00:15:43]} {[%emt 00:00:16]} 17. Qxc6+
{[%clk 00:44:21]} {[%emt 00:00:58]} Qxc6 {[%clk 00:16:08]} {[%emt 00:00:05]} 18.
Nxc6 {[%clk 00:44:43]} {[%emt 00:00:08]} Rc8 {[%clk 00:16:35]} {[%emt
00:00:03]} 19. Nxa7 {[%clk 00:36:39]} {[%emt 00:08:33]} Rxc2 {[%clk 00:17:00]}
{[%emt 00:00:06]} 20. Bd4 {[%clk 00:36:49]} {[%emt 00:00:20]} Rxe2 {[%clk
00:15:16]} {[%emt 00:02:14]} 21. a4 {[%clk 00:35:23]} {[%emt 00:01:56]} Kd7
{[%clk 00:13:10]} {[%emt 00:02:36]} 22. a5 {[%clk 00:33:38]} {[%emt 00:02:16]}
e5 {[%clk 00:13:25]} {[%emt 00:00:15]} 23. Bb6 {[%clk 00:30:16]} {[%emt
00:03:51]} d4 {[%clk 00:13:45]} {[%emt 00:00:11]} 24. Nb5 {[%clk 00:24:20]}
{[%emt 00:06:26]} Nd5 {[%clk 00:13:34]} {[%emt 00:00:41]} 25. Rfc1 {[%clk
00:24:09]} {[%emt 00:00:40]} Rb8 {[%clk 00:09:36]} {[%emt 00:04:28]} 26. Rc5
{[%clk 00:21:10]} {[%emt 00:03:29]} Nxb6 {[%clk 00:09:48]} {[%emt 00:00:18]} 27.
Rc7+ {[%clk 00:21:16]} {[%emt 00:00:24]} Ke6 {[%clk 00:09:50]} {[%emt
00:00:28]} 28. Rc6+ {[%clk 00:21:41]} {[%emt 00:00:06]} Kd5 {[%clk 00:09:46]}
{[%emt 00:00:33]} 29. Rac1 {[%clk 00:19:19]} {[%emt 00:02:51]} Nd7 {[%clk
00:08:49]} {[%emt 00:01:28]} 30. Nc7+ {[%clk 00:14:04]} {[%emt 00:05:46]} Ke4
{[%clk 00:09:16]} {[%emt 00:00:03]} 31. a6 {[%clk 00:14:00]} {[%emt 00:00:34]}
Ra2 {[%clk 00:08:35]} {[%emt 00:01:11]} 32. Rb1 {[%clk 00:05:51]} {[%emt
00:08:38]} Bf8 {[%clk 00:06:45]} {[%emt 00:02:20]} 33. Rc4 {[%clk 00:05:21]}
{[%emt 00:01:00]} Bd6 {[%clk 00:05:40]} {[%emt 00:01:35]} 34. b4 {[%clk
00:04:12]} {[%emt 00:01:39]} Nb6 {[%clk 00:05:30]} {[%emt 00:00:41]} 0-1